bitfinex/quotes_ETHUSD_20250604
["timestamp","ask_amount","ask_price","bid_price","bid_amount"]
[1749019101055,1.3763,2620.9,2620.8,15.96]
[1749019103069,0.02,2620.9,2620.8,15.96]
[1749019109000,0.02,2620.9,2620.8,25.96]
[1749019110913,0.02,2620.9,2620.8,1.576]
[1749019111064,0.02,2620.9,2620.8,10.486337]
[1749019111402,0.02,2620.9,2620.8,8.75602046]
[1749019111963,0.02,2620.9,2620.8,14.91502046]
[1749019113522,0.02,2620.9,2620.8,12.429178]
[1749019113693,0.02,2620.9,2620.3,2.55321972]
[1749019113892,0.02,2620.9,2620.4,16.164]
[1749019114100,0.02,2620.9,2620.5,10.0]
[1749019114483,0.02,2620.9,2620.3,2.55321972]
[1749019114484,0.02,2620.9,2620.6,6.164]
[1749019115315,0.02,2620.9,2620.7,9.804]
[1749019116083,0.02,2620.9,2620.8,6.163]
[1749019121141,0.02,2620.9,2620.7,9.804]
[1749019121442,0.02,2620.9,2620.8,6.162]
[1749019122517,0.02,2620.9,2620.7,9.804]
[1749019122740,0.02,2620.9,2620.8,6.161]
[1749019126022,0.02,2620.9,2620.8,9.811]
[1749019127164,0.02,2620.9,2620.8,15.97]
[1749019131178,0.02,2620.9,2620.4,2.493458]
[1749019132241,0.02,2620.9,2620.5,6.157]
[1749019135244,0.02,2620.9,2620.6,9.811]
[1749019140269,0.02,2620.9,2620.7,1.581]
[1749019145099,0.02,2620.9,2620.8,8.23]
[1749019147253,0.02,2620.9,2620.8,16.98249]
[1749019151507,0.02,2620.9,2620.8,11.984722]
[1749019151704,0.02,2620.9,2620.8,19.715722]
[1749019156220,0.02,2620.9,2620.8,11.984722]
[1749019156423,0.55,2620.7,2619.9,2.55321972]
[1749019156623,0.55,2620.7,2620.1,10.0]
[1749019156921,0.55,2620.7,2620.3,20.0]
[1749019157083,0.55,2620.5,2620.4,1.575]
[1749019157278,0.55,2620.5,2620.4,7.738]
[1749019157279,1.71332197,2620.5,2620.4,7.738]
[1749019158623,1.71332197,2620.5,2619.6,2.55321972]
[1749019158829,1.71332197,2620.5,2619.7,17.738]
[1749019159030,1.71332197,2620.5,2619.8,10.0]
[1749019160331,1.71332197,2620.5,2619.8,12.55321972]
[1749019160507,1.403,2620.5,2620.0,2.55321972]
[1749019161036,1.403,2620.5,2620.1,6.162]
[1749019162338,1.403,2620.5,2620.2,10.0]
[1749019162494,0.853,2620.5,2620.3,11.575]
[1749019163204,0.02,2620.9,2620.4,2.55321972]
[1749019163205,0.7962,2620.8,2620.4,2.55321972]
[1749019163934,0.02,2620.9,2620.6,2.55321972]
[1749019164235,0.02,2620.9,2620.7,8.23]
[1749019165206,0.02,2620.9,2620.8,6.176]
[1749019166225,0.02,2620.9,2620.8,16.176]
[1749019168845,0.02,2620.9,2620.8,9.294768]
[1749019170041,0.02,2620.9,2620.8,13.42298772]
[1749019170851,0.02,2620.9,2620.8,10.869768]
[1749019172333,0.02,2620.9,2620.8,13.42298772]
[1749019177838,0.02,2620.9,2620.8,15.97620744]
[1749019178358,0.02,2620.9,2620.8,13.42298772]
[1749019183134,0.02,2620.9,2620.8,15.97620744]
[1749019183338,0.02,2620.9,2620.8,13.42298772]
[1749019183518,0.02,2620.9,2620.8,15.97620744]
[1749019184178,0.02,2621.9,2620.8,15.97620744]
[1749019184464,0.02,2621.9,2621.8,12.55321972]
[1749019184760,0.02,2621.9,2621.8,20.30621972]
[1749019192037,0.02,2621.9,2621.8,22.85943944]
[1749019192241,0.00311512,2621.9,2621.8,22.85943944]
[1749019192780,0.00311512,2621.9,2621.8,20.30621972]
[1749019193947,0.00311512,2621.9,2621.8,22.85943944]
[1749019194144,0.8188,2622.7,2621.8,22.85943944]
[1749019194339,0.8188,2622.7,2622.3,12.55321972]
[1749019194605,0.8188,2622.7,2622.3,20.77921972]
[1749019195098,0.02,2622.9,2622.3,20.77921972]
[1749019195389,0.8585,2622.9,2622.3,20.77921972]
[1749019196558,0.33636613,2622.4,2622.3,20.77921972]
[1749019196992,0.33636613,2622.4,2622.3,14.83216754]
[1749019200055,0.8585,2622.9,2622.3,14.83216754]
[1749019200056,0.02,2622.9,2622.3,14.83216754]
[1749019200261,0.02,2622.9,2622.8,6.60616754]
[1749019200496,0.02,2622.9,2622.8,12.78016754]
[1749019202972,0.02,2622.9,2622.8,15.33338726]
[1749019203171,0.8155,2623.8,2622.9,4.05294782]
[1749019203363,0.8155,2623.8,2623.7,2.55321972]
[1749019203564,0.8155,2623.8,2623.7,18.53321972]
[1749019203981,0.8155,2623.8,2623.7,28.53321972]
[1749019204606,0.02,2623.9,2623.7,28.53321972]
[1749019204805,0.02,2623.9,2623.7,18.53321972]
[1749019205018,0.02,2623.9,2623.8,2.55321972]
[1749019205318,0.02,2623.9,2623.8,12.55321972]
[1749019206093,0.00074406,2624.9,2623.9,10.0]
[1749019206296,0.00074406,2624.9,2623.8,2.55321972]
[1749019206297,0.00074406,2624.9,2624.8,12.55321972]
[1749019206498,0.00074406,2624.9,2624.8,20.32021972]
[1749019207008,0.00074406,2624.9,2624.8,22.87343944]
[1749019207399,0.02,2625.9,2624.9,1.48946736]
[1749019207707,0.02,2625.9,2625.6,10.0]
[1749019208020,0.02,2625.9,2625.8,20.0]
[1749019208228,0.8324,2625.8,2625.1,6.212404]
[1749019208395,0.02,2625.9,2625.8,12.55321972]
[1749019208593,0.02,2625.9,2625.8,14.13621972]
[1749019211239,0.02,2625.9,2625.8,16.88076763]
[1749019212533,0.02,2625.9,2625.8,17.815]
[1749019214600,0.02,2625.9,2625.8,23.11276763]
[1749019224105,0.02,2625.9,2625.8,15.29776763]
[1749019224303,0.02,2625.9,2625.8,23.10076763]
[1749019227736,0.02,2625.9,2625.8,31.31376763]
[1749019233123,0.02,2625.9,2625.8,28.81709113]
[1749019234106,1.02948061,2626.6,2626.5,12.80109113]
[1749019234267,1.02948061,2626.6,2626.5,14.40809113]
[1749019235423,0.21398061,2626.6,2626.5,14.40809113]
[1749019240756,0.21398061,2626.6,2626.5,12.80109113]
[1749019240957,0.21398061,2626.6,2626.5,20.59109113]
[1749019247493,0.21398061,2626.6,2626.5,20.58709113]
[1749019251593,0.21398061,2626.6,2626.5,16.25514962]
[1749019252301,0.21398061,2626.6,2626.5,13.45405849]
[1749019252657,0.21398061,2626.6,2626.5,16.25514962]
[1749019252862,0.21398061,2626.6,2626.5,13.45405849]
[1749019254280,0.21398061,2626.6,2626.5,16.25514962]
[1749019255159,0.02,2626.9,2626.5,16.25514962]
[1749019255369,0.8269,2627.6,2626.9,12.86696736]
[1749019255663,0.8696,2627.8,2627.6,2.86696736]
[1749019255991,0.8696,2627.8,2627.7,21.67205849]
[1749019256310,0.00152915,2627.9,2627.8,2.86696736]
[1749019256664,0.00152915,2627.9,2627.7,11.01109113]
[1749019256891,0.84482915,2627.9,2627.8,9.909858]
[1749019257078,0.84482915,2627.9,2627.8,2.113858]
[1749019257280,0.84482915,2627.9,2627.8,9.909858]
[1749019257497,0.84482915,2627.9,2627.8,9.910858]
[1749019258016,0.84482915,2627.9,2627.7,8.21]
[1749019258167,0.84482915,2627.9,2627.8,1.597]
[1749019259513,0.84482915,2627.9,2627.8,3.737205]
[1749019259714,0.84482915,2627.9,2627.8,9.947205]
[1749019260015,0.84482915,2627.9,2627.6,2.80109113]
[1749019260218,0.84482915,2627.9,2627.7,9.454682]
[1749019260688,0.84482915,2627.9,2627.7,3.984771]
[1749019261278,0.84482915,2627.9,2627.8,6.211]
[1749019262623,0.84482915,2627.9,2627.8,6.21]
[1749019264078,0.84482915,2627.9,2626.0,1.95110427]
[1749019264290,0.84482915,2627.9,2627.3,3.995584]
[1749019264490,0.84482915,2627.9,2627.4,6.211]
[1749019265244,0.84482915,2627.9,2627.5,9.805]
[1749019265529,0.84482915,2627.9,2627.6,6.211]
[1749019266089,0.84482915,2627.9,2627.5,9.805]
[1749019266311,0.84482915,2627.9,2627.6,6.21]
[1749019266945,1.3399,2627.8,2627.7,1.597]
[1749019267154,1.75415203,2627.8,2627.5,8.208]
[1749019267453,1.75415203,2627.8,2627.7,1.597]
[1749019268320,1.75415203,2627.8,2627.4,6.21]
[1749019268321,0.55,2627.6,2627.4,6.21]
[1749019268521,0.55,2627.5,2626.9,6.536439]
[1749019268746,1.3943,2627.5,2627.4,6.209]
[1749019270150,1.3943,2627.5,2626.8,2.80109113]
[1749019270464,0.41425203,2627.8,2626.9,6.211]
[1749019270465,0.7813,2627.3,2626.9,6.211]
[1749019270618,0.7813,2627.1,2626.9,6.211]
[1749019270812,0.7813,2627.1,2626.4,2.80109113]
[1749019271120,0.7813,2626.9,2626.5,6.211]
[1749019272942,0.7813,2626.9,2626.6,6.21]
[1749019275321,0.7813,2626.9,2626.7,9.823]
[1749019277159,0.7813,2626.9,2626.8,2.80109113]
[1749019278368,0.7813,2626.9,2626.7,9.823]
[1749019279237,1.32643,2626.9,2626.7,9.823]
[1749019280865,1.32643,2626.9,2626.8,2.80109113]
[1749019281051,0.7813,2626.9,2626.8,2.80109113]
[1749019281253,0.7813,2626.9,2626.7,9.823]
[1749019283545,0.7813,2626.9,2626.8,2.80109113]
[1749019285145,0.7813,2626.9,2626.7,9.823]
[1749019286636,0.7813,2626.9,2626.8,2.80109113]
[1749019287462,0.7813,2626.9,2626.7,8.21]
[1749019287463,1.32643,2626.9,2626.7,8.21]
[1749019287629,1.32643,2626.9,2626.8,7.81]
[1749019290971,1.32643,2626.9,2626.7,8.21]
[1749019291130,1.87643,2626.9,2626.8,7.808]
[1749019291829,6.54643,2626.9,2626.8,1.613]
[1749019292031,6.54643,2626.9,2626.8,7.808]
[1749019292270,1.87643,2626.9,2626.8,7.808]
[1749019292470,1.3313,2626.9,2626.8,7.808]
[1749019292772,1.3313,2626.9,2626.7,8.21]
[1749019293099,1.3461,2626.8,2626.7,8.21]
[1749019293273,1.3461,2626.8,2626.7,16.017]
[1749019293460,1.3461,2626.8,2626.7,9.823]
[1749019293777,1.3461,2626.8,2626.7,16.019]
[1749019294781,1.3461,2626.8,2626.7,9.825]
[1749019296045,1.3461,2626.8,2626.7,16.02]
[1749019296890,0.7961,2626.8,2626.7,16.018]
[1749019298107,1.3461,2626.8,2626.7,16.018]
[1749019300772,0.7961,2626.8,2626.7,16.018]
[1749019303702,0.02,2626.9,2626.7,16.018]
[1749019304002,0.02,2626.9,2626.8,5.98409113]
[1749019304394,0.02,2626.9,2626.8,2.80109113]
[1749019306067,0.02,2626.9,2626.8,7.91153113]
[1749019306887,0.02,2626.9,2626.8,7.05019113]
[1749019308208,0.02,2626.9,2626.8,12.61209113]
[1749019309120,0.02,2626.9,2626.8,22.61209113]
[1749019309307,0.02,2626.9,2626.8,31.60518226]
[1749019309824,0.02,2626.9,2626.8,28.80409113]
[1749019310113,0.02,2626.9,2626.8,31.60518226]
[1749019310589,0.02,2626.9,2626.8,28.80409113]
[1749019311517,0.02,2626.9,2626.8,31.60518226]
[1749019313933,0.00326137,2626.9,2626.8,31.60518226]
[1749019314920,0.00152915,2627.9,2626.8,31.60518226]
[1749019315090,0.00152915,2627.9,2627.8,12.80109113]
[1749019315293,0.00152915,2627.9,2627.8,20.59509113]
[1749019316031,0.00152915,2627.9,2627.8,23.39618226]
[1749019316488,0.00152915,2627.9,2627.8,20.59509113]
[1749019316958,0.00152915,2627.9,2627.8,23.39618226]
[1749019318514,0.00152915,2627.9,2627.8,20.59509113]
[1749019318738,0.00152915,2627.9,2627.8,20.60209113]
[1749019319477,0.00017787,2627.9,2627.8,20.60209113]
[1749019320324,0.00017787,2627.9,2627.8,18.97277813]
[1749019321030,0.00017787,2627.9,2627.8,11.17177813]
[1749019321231,0.00017787,2627.9,2627.8,15.34344713]
[1749019327450,0.00017787,2627.9,2627.8,18.14453826]
[1749019328036,0.8147,2628.7,2627.8,26.14453826]
[1749019328255,0.8147,2628.7,2628.6,10.0]
[1749019328441,0.02,2628.9,2628.7,8.0]
[1749019328442,0.8347,2628.9,2628.7,8.0]
[1749019328742,0.8347,2628.9,2628.8,14.199]
[1749019330213,0.02,2628.9,2628.8,27.00009113]
[1749019330450,0.02,2628.9,2628.8,20.99809313]
[1749019330655,0.8328,2628.9,2628.8,20.99809313]
[1749019330822,0.8328,2628.9,2628.8,10.402002]
[1749019331034,0.8328,2628.9,2628.8,15.8]
[1749019334454,0.8328,2628.9,2628.8,23.18016213]
[1749019334657,0.8328,2628.9,2628.8,21.12954113]
[1749019334817,0.8328,2628.9,2628.8,24.72774113]
[1749019335216,0.8328,2628.9,2628.8,24.24474113]
[1749019336879,0.8328,2628.9,2628.8,18.481791]
[1749019337021,0.8328,2628.9,2628.8,9.608]
[1749019337223,0.8328,2628.9,2628.8,15.814]
[1749019337950,0.8328,2628.9,2628.8,9.608]
[1749019338127,0.8328,2628.9,2628.8,15.813]
[1749019345376,1.3828,2628.9,2628.8,9.608]
[1749019345579,1.3828,2628.9,2628.8,15.805]
[1749019346753,1.3828,2628.9,2628.8,24.01]
[1749019347479,1.3828,2628.9,2628.8,17.813]
[1749019347679,1.3828,2628.9,2628.8,24.008]
[1749019349563,1.3828,2628.9,2628.8,24.006]
[1749019349985,1.3828,2628.9,2628.8,17.813]
[1749019350178,1.3828,2628.9,2628.8,24.006]
[1749019350402,1.3828,2628.9,2628.8,16.205]
[1749019350566,1.3828,2628.9,2628.8,24.006]
[1749019350768,1.3828,2628.9,2628.8,17.813]
[1749019350965,1.80118911,2628.9,2628.8,24.008]
[1749019351491,1.3828,2628.9,2628.8,24.008]
[1749019351908,0.8328,2628.9,2628.8,24.008]
[1749019352567,1.3828,2628.9,2628.8,24.008]
[1749019353074,0.02,2628.9,2628.8,24.008]
[1749019353907,0.02,2628.9,2628.8,9.814]
[1749019354302,0.02,2628.9,2628.6,2.80109113]
[1749019354684,0.02,2628.9,2628.4,2.80109113]
[1749019355113,0.02,2628.9,2628.5,6.206]
[1749019355313,0.02,2628.9,2628.6,1.608]
[1749019356019,0.02,2628.9,2628.6,9.608]
[1749019357835,0.02,2628.9,2628.6,12.40909113]
[1749019358834,0.02,2628.9,2628.8,8.0]
[1749019358999,0.02,2628.9,2628.7,8.0]
[1749019359626,0.02,2628.9,2628.6,12.40909113]
[1749019359829,0.02,2628.9,2628.8,18.40534213]
[1749019361820,0.8286,2630.0,2629.0,10.0]
[1749019362137,0.8286,2630.0,2629.8,8.0]
[1749019362296,0.8286,2630.3,2629.8,25.835]
[1749019362722,0.02,2630.9,2629.8,25.835]
[1749019362940,0.8399,2630.5,2629.8,25.835]
[1749019363141,0.8399,2630.5,2629.8,11.888315]
[1749019363311,0.8043,2630.7,2629.8,18.117315]
[1749019364541,0.55,2630.6,2629.8,10.281315]
[1749019364743,0.8536,2630.0,2629.8,7.859]
[1749019365650,0.8536,2630.0,2629.8,1.625]
[1749019365834,0.57,2629.9,2629.8,1.625]
[1749019366034,0.57,2629.9,2629.8,15.856]
[1749019366440,0.02,2629.9,2629.8,24.87368513]
[1749019366651,0.02,2629.9,2629.8,23.30111613]
[1749019372217,0.02,2629.9,2629.8,23.30211613]
[1749019374847,0.02,2629.9,2629.8,23.30411613]
[1749019376621,0.8422,2630.8,2629.9,8.0]
[1749019376822,0.02,2630.9,2630.7,18.0]
[1749019377023,0.02,2630.9,2630.8,28.66509113]
[1749019377523,0.02,2630.9,2630.8,27.47650713]
[1749019378236,0.8549,2632.1,2631.0,10.0]
[1749019378411,0.8549,2632.1,2630.8,18.66509113]
[1749019378412,0.8549,2632.1,2630.8,7.864]
[1749019378613,0.8549,2631.8,2631.0,8.0]
[1749019378819,0.55,2631.7,2631.0,8.0]
[1749019379053,0.8543,2631.6,2631.0,8.0]
[1749019379266,0.8543,2631.6,2631.2,8.0]
[1749019379429,0.55,2631.5,2631.4,8.0]
[1749019379650,1.55533,2631.5,2630.9,8.0]
[1749019379850,0.8099,2631.4,2631.1,8.0]
[1749019380075,0.8099,2631.4,2631.2,1.624]
[1749019381966,0.8099,2631.4,2631.3,1.624]
[1749019381967,1.3599,2631.4,2631.3,1.624]
[1749019382170,1.570433,2631.4,2631.3,1.624]
[1749019383254,1.570433,2631.4,2631.3,7.878]
[1749019384181,1.570433,2631.4,2631.3,15.878]
[1749019385183,1.570433,2631.4,2631.3,15.875]
[1749019385379,0.760533,2631.4,2631.3,15.875]
[1749019385558,0.55,2631.4,2631.3,15.875]
[1749019385955,0.02,2631.9,2631.4,8.0]
[1749019386189,0.8385,2631.9,2631.6,8.0]
[1749019386544,0.55,2631.8,2631.6,8.0]
[1749019387397,0.8385,2631.9,2631.8,8.0]
[1749019387599,0.8385,2631.9,2631.6,8.0]
[1749019387893,0.8385,2631.9,2631.7,8.0]
[1749019387894,0.55,2631.8,2631.7,8.0]
[1749019388074,0.55,2631.8,2631.7,15.881]
[1749019388458,0.55,2631.8,2631.7,9.624]
[1749019388787,1.3938,2631.8,2631.7,1.624]
[1749019388962,1.3938,2631.8,2631.7,7.881]
[1749019389287,1.3718,2631.7,2631.6,8.0]
[1749019389489,1.79108911,2631.7,2631.6,15.881]
[1749019389787,1.79108911,2631.7,2631.6,9.624]
[1749019390157,1.79108911,2631.7,2631.6,1.624]
[1749019390342,4.59218024,2631.7,2631.6,1.624]
[1749019390541,4.59218024,2631.7,2631.6,9.624]
[1749019390772,4.59218024,2631.7,2631.6,8.0]
[1749019390986,4.59218024,2631.7,2631.6,9.624]
[1749019391593,4.59218024,2631.7,2631.6,1.624]
[1749019393162,9.26218024,2631.7,2631.6,1.624]
[1749019393681,9.26218024,2631.7,2631.5,9.823]
[1749019393871,2.36671802,2631.6,2631.5,9.823]
[1749019394394,1.4405,2631.4,2631.3,1.624]
[1749019394595,1.3685,2631.2,2631.1,1.624]
[1749019397303,0.55,2630.9,2630.1,8.198]
[1749019397500,0.55,2630.7,2630.2,1.64]
[1749019398276,0.55,2630.5,2629.7,8.199]
[1749019398476,0.55,2630.5,2629.8,1.64]
[1749019398690,0.55,2630.3,2629.9,6.264]
[1749019399064,0.55,2630.3,2630.0,8.0]
[1749019401507,0.02,2630.9,2629.7,8.199]
[1749019401508,0.55,2630.1,2629.7,8.199]
[1749019401688,0.55,2630.1,2629.8,7.9]
[1749019401889,0.55,2630.1,2629.9,8.0]
[1749019402204,0.55,2630.1,2629.8,7.9]
[1749019402590,0.55,2630.2,2629.8,1.64]
[1749019402904,0.55,2630.0,2629.9,6.259]
[1749019405393,0.55,2630.0,2629.8,9.64]
[1749019405593,1.408,2629.9,2629.8,15.896]
[1749019406897,1.408,2629.9,2629.8,15.894]
[1749019408305,1.408,2629.9,2629.7,8.199]
[1749019408306,0.55,2629.8,2629.7,8.199]
[1749019408469,0.55,2629.8,2629.7,9.84]
[1749019409366,0.55,2629.8,2629.7,16.091]
[1749019412484,0.55,2629.8,2629.7,1.641]
[1749019413809,0.55,2629.8,2629.7,7.889]
[1749019415717,0.55,2629.8,2629.7,7.886]
[1749019416495,0.55,2629.8,2629.7,1.641]
[1749019417813,0.55,2629.8,2629.7,7.883]
[1749019418631,5.22,2629.8,2629.7,7.883]
[1749019418836,5.8278,2629.8,2629.7,7.883]
[1749019420337,5.8278,2629.8,2629.0,0.72845428]
[1749019420512,5.8278,2629.8,2628.9,2.75450008]
[1749019421394,0.55,2629.6,2628.5,2.80109113]
[1749019421720,0.55,2629.6,2628.1,0.39770288]
[1749019421721,0.55,2629.4,2628.7,2.80109113]
[1749019422217,0.55,2629.6,2628.9,2.80109113]
[1749019422422,0.55,2629.6,2629.0,8.0]
[1749019423995,0.55,2629.6,2629.2,8.0]
[1749019424196,1.21318,2629.6,2629.2,8.0]
[1749019424413,0.55,2629.4,2629.2,8.0]
[1749019425247,0.55,2629.4,2629.3,1.641]
[1749019428748,0.55,2629.4,2629.3,4.44209113]
[1749019429872,4.67,2629.5,2629.3,12.44209113]
[1749019430369,4.67,2630.1,2629.3,12.44209113]
[1749019430664,0.55,2630.0,2629.6,8.0]
[1749019431066,4.67,2630.1,2629.7,2.80109113]
[1749019431372,4.67,2630.1,2629.8,6.229]
[1749019431575,0.8278,2630.5,2629.9,12.42709113]
[1749019431741,1.37758,2630.5,2629.9,12.42709113]
[1749019432070,0.55,2630.4,2629.9,12.42709113]
[1749019433671,1.37758,2630.5,2629.9,12.42709113]
[1749019433672,0.55,2630.5,2629.9,12.42709113]
[1749019435464,0.55,2630.3,2630.0,7.861]
[1749019435667,0.55,2630.3,2630.1,1.626]
[1749019436272,0.8674,2630.4,2630.1,1.626]
[1749019436273,5.22,2630.2,2630.1,1.626]
[1749019440693,0.55,2630.1,2629.0,8.204]
[1749019440844,0.55,2629.9,2629.5,8.0]
[1749019441478,0.55,2629.9,2629.1,7.855]
[1749019441479,0.55,2629.9,2629.6,2.80109113]
[1749019441675,0.55,2629.9,2629.7,1.626]
[1749019441879,0.55,2629.9,2629.8,14.229]
[1749019442485,0.55,2629.9,2629.8,8.0]
[1749019442800,0.55,2629.9,2629.8,14.227]
[1749019442990,0.55,2629.9,2629.8,8.0]
[1749019443190,0.55,2629.9,2629.8,14.226]
[1749019444118,1.072,2629.9,2629.8,8.0]
[1749019444318,1.072,2629.9,2629.8,15.852]
[1749019446702,0.55,2629.9,2629.8,15.852]
[1749019448812,0.55,2629.9,2629.8,15.847]
[1749019450110,0.55,2629.9,2629.8,9.626]
[1749019450426,0.55,2629.9,2629.8,15.845]
[1749019452788,0.55,2629.9,2629.8,9.626]
[1749019453101,1.9176,2629.9,2629.8,1.626]
[1749019453419,1.9176,2629.9,2629.8,7.841]
[1749019454115,6.5876,2629.9,2629.8,7.841]
[1749019454501,6.5876,2629.9,2629.8,1.626]
[1749019456229,6.5876,2629.9,2629.8,7.84]
[1749019458316,0.55,2629.7,2629.6,8.202]
[1749019458514,0.55,2629.7,2629.6,16.027]
[1749019459904,5.22,2629.7,2629.6,16.027]
[1749019466929,4.67,2629.7,2629.6,26.82809113]
[1749019467111,5.22,2629.7,2629.6,24.027]
[1749019467698,5.22,2629.7,2629.6,24.033]
[1749019472074,5.22,2629.7,2629.6,17.817]
[1749019472296,5.742,2629.7,2629.6,24.038]
[1749019473756,5.22,2629.7,2629.6,24.038]
[1749019474583,5.22,2629.7,2629.3,1.12880788]
[1749019474751,0.55,2629.6,2629.5,8.203]
[1749019475845,0.55,2629.6,2629.5,14.421]
[1749019476646,0.55,2629.6,2629.5,22.421]
[1749019477399,0.55,2630.0,2629.5,22.421]
[1749019478242,0.55,2630.0,2629.6,8.0]
[1749019479268,0.55,2630.0,2629.6,8.0254]
[1749019481198,0.55,2630.0,2629.7,1.614]
[1749019483605,0.55,2630.0,2629.8,6.208]
[1749019485903,0.55,2630.0,2629.9,1.614]
[1749019490526,0.55,2630.0,2629.9,1.609]
[1749019491030,0.55,2630.3,2629.9,1.609]
[1749019491824,0.55,2630.3,2630.0,6.2]
[1749019495262,0.55,2630.3,2630.1,6.197]
[1749019495397,0.55,2630.6,2630.1,6.197]
[1749019495592,0.845,2630.7,2630.1,6.197]
[1749019496036,0.55,2630.6,2630.1,6.197]
[1749019498554,0.55,2630.6,2630.2,1.609]
[1749019499755,0.55,2630.6,2630.3,6.201]
[1749019501258,0.55,2630.6,2630.2,1.609]
[1749019501455,0.55,2630.6,2630.3,1.609]
[1749019502856,0.55,2630.6,2630.3,7.807]
[1749019507580,0.55,2630.6,2630.4,1.609]
[1749019507767,0.55,2630.2,2629.6,8.0]
[1749019508086,0.55,2630.2,2629.7,7.804]
[1749019509713,0.55,2630.2,2629.8,1.609]
[1749019510846,0.55,2630.2,2629.9,6.193]
[1749019514311,0.55,2630.2,2629.9,6.19]
[1749019514600,0.55,2630.2,2630.0,1.609]
[1749019523301,0.55,2630.2,2630.0,7.792]
[1749019524193,1.4066,2630.1,2630.0,1.609]
[1749019524485,1.82736911,2630.1,2630.0,1.609]
[1749019527313,1.4066,2630.1,2630.0,1.609]
[1749019528715,0.55,2630.1,2630.0,1.609]
[1749019530740,2.80109113,2630.5,2630.0,1.609]
[1749019530741,0.8272,2630.5,2630.0,1.609]
[1749019531398,0.55,2630.4,2630.0,1.609]
[1749019532117,0.55,2630.4,2630.1,7.78]
[1749019538340,0.55,2630.4,2630.1,7.777]
[1749019543482,0.55,2630.4,2630.1,1.6]
[1749019543683,0.55,2630.5,2630.1,1.6]
[1749019543871,0.55,2630.3,2630.1,1.6]
[1749019547485,0.8427,2630.8,2630.1,1.6]
[1749019547785,0.55,2630.7,2630.1,1.6]
[1749019552170,0.55,2630.3,2630.1,1.6]
[1749019556274,0.55,2630.5,2630.1,1.6]
[1749019557798,0.55,2630.5,2630.2,1.591]
[1749019563463,0.57,2630.9,2630.2,1.591]
[1749019563732,0.57,2630.9,2630.2,9.591]
[1749019565341,0.57,2630.9,2630.2,1.591]
[1749019565510,0.57,2630.9,2630.3,7.842603]
[1749019565710,0.57,2630.9,2630.4,10.0]
[1749019565919,0.02,2630.9,2630.5,8.0]
[1749019566250,0.02,2630.9,2630.7,10.0]
[1749019566400,0.02,2630.9,2630.8,7.768]
[1749019567442,0.02,2630.9,2630.8,10.56162204]
[1749019567859,0.02,2630.9,2630.8,28.56162204]
[1749019569835,0.21358046,2631.5,2630.8,28.56162204]
[1749019569836,0.21358046,2631.5,2631.0,10.0]
[1749019570144,0.21358046,2631.5,2631.4,12.79362204]
[1749019570325,0.21358046,2631.5,2631.4,14.38462204]
[1749019570531,0.21358046,2631.5,2631.4,22.38462204]
[1749019571729,0.55,2632.5,2632.2,0.2]
[1749019571931,5.2905,2634.2,2632.3,7.775]
[1749019572150,2.79362204,2633.3,2632.5,0.2]
[1749019572732,2.79362204,2633.1,2632.5,0.2]
[1749019572931,0.89620826,2634.1,2632.5,0.2]
[1749019573254,2.79362204,2633.3,2632.5,0.2]
[1749019573457,0.2793622,2633.2,2632.5,0.2]
[1749019573760,0.55,2632.8,2632.6,1.59]
[1749019573984,3.34362204,2632.7,2632.6,1.59]
[1749019574722,1.3388,2632.7,2632.6,1.59]
[1749019574949,0.55,2632.6,2632.5,1.59]
[1749019575151,1.8036422,2632.6,2632.5,1.59]
[1749019575360,1.3904,2632.5,2632.0,1.59]
[1749019575565,0.9632422,2632.6,2632.1,1.59]
[1749019575566,4.18402204,2632.2,2632.1,1.59]
[1749019575764,0.55,2632.1,2631.4,6.201]
[1749019576071,0.55,2631.9,2631.5,1.59]
[1749019577154,0.55,2632.1,2631.5,1.59]
[1749019581185,0.55,2631.9,2631.5,1.59]
[1749019582807,0.55,2631.7,2631.6,1.605]
[1749019583607,4.20132204,2631.7,2631.6,1.605]
[1749019585207,8.87132204,2631.7,2631.6,1.605]
[1749019585366,6.0777,2631.7,2631.6,1.605]
[1749019586546,6.0777,2631.7,2630.6,8.0]
[1749019586720,1.3419,2631.3,2631.2,1.605]
[1749019587021,6.0119,2631.3,2631.2,1.605]
[1749019587885,0.8428,2631.2,2631.0,1.605]
[1749019588191,1.94408,2631.1,2631.0,1.605]
[1749019588789,6.61408,2631.1,2631.0,1.605]
[1749019589323,0.55,2630.7,2630.4,9.803]
[1749019589527,5.22,2630.7,2630.4,9.803]
[1749019589847,0.55,2630.5,2630.4,9.803]
[1749019590131,1.3954,2630.5,2630.4,9.803]
[1749019590368,4.18902204,2630.5,2630.4,8.198]